Cogmind - Beta 16 @@@ ROGUE MODE // 2025.10.29 @ 17:43:37 Player: BlobtheGreat Result: Destroyed by ID-U6V(R) with Subdweller Laser Performance ------------- Evolutions (0) 0 Regions Visited (2) 400 Robots Destroyed (15) 75 Value Destroyed (280) 280 Prototype IDs (0) 0 Alien Tech Used (0) 0 Bonus (0) 0 TOTAL SCORE: 755 Bonus ------- None Cogmind --------- Core Integrity 0/250 Matter 260/300 Energy 86/200 System Corruption 4% Temperature Cool (6) Movement Treading (160) Location -10/Subcaves Parts ------- > --- POWER (1) -------- Subdweller Power Source > --- PROPULSION (2) --- Light Treads Light Treads > --- UTILITY (2) ------ Large Storage Unit Seismic Detector > --- WEAPON (2) ------- EM Pulse Gun Small Laser > --- INVENTORY (15) --- Light Ion Engine Aluminum Leg Aluminum Leg Wheel Wheel Subdweller Monowheel Subdweller Monowheel Small Storage Unit Seismic Detector Subdweller Beam Cannon Peak State ------------ > --- POWER ------------ Subdweller Power Source > --- PROPULSION ------- Light Treads Light Treads > --- UTILITY ---------- Large Storage Unit Seismic Detector > --- WEAPON ----------- Small Laser Subdweller Beam Cannon > --- INVENTORY -------- Light Ion Engine Aluminum Leg Aluminum Leg Wheel Wheel Subdweller Monowheel Subdweller Monowheel Small Storage Unit Seismic Detector EM Pulse Gun [Rating: 10] Favorites ----------- Power Light Ion Engine Engine Light Ion Engine Propulsion Light Treads Treads Light Treads Utility Seismic Detector Device Seismic Detector Storage Large Storage Unit Weapon EM Pulse Gun Energy Gun EM Pulse Gun Energy Cannon Subdweller Beam Cannon Build | -11 -10 -10 ------- Run | Yrd Mat Sub Slots Evolved . | . . . Power . | . . . Propulsion . | . . . Utility . | . . . Weapon . | . . . Parts Attached 11 | 7 3 1 Power 2 | 1 1 . Engine 2 | 1 1 . Core . | . . . Reactor . | . . . Propulsion 2 | 2 . . Treads 2 | 2 . . Leg . | . . . Wheel . | . . . Hover . | . . . Flight . | . . . Utility 3 | 2 1 . Device 1 | 1 . . Storage 2 | 1 1 . Processor . | . . . Hackware . | . . . Protection . | . . . Artifact . | . . . Weapon 4 | 2 1 1 Energy Gun 3 | 2 1 . Energy Cannon 1 | . . 1 Ballistic Gun . | . . . Ballistic Cannon . | . . . Launcher . | . . . Special Weapon . | . . . Impact Weapon . | . . . Slashing Weapon . | . . . Piercing Weapon . | . . . Special Melee Weapon . | . . . Unidentified Prototypes . | . . . Corrupted Parts 1 | . . 1 System Corruption 4 | . . 4 Parts Lost 2 | . 2 . Power 1 | . 1 . Propulsion . | . . . Utility . | . . . Weapon 1 | . 1 . Highest Loss Streak 1 | . 1 . To Critical Strikes . | . . . Average Backups 8 | 3 7 9 Power . | . 1 1 Propulsion 4 | 2 4 5 Utility 1 | . 1 2 Weapon . | . . 1 Tool/Special . | . . . Unused Backups 7 | . . 7 Power 1 | . . 1 Propulsion 5 | . . 5 Utility 1 | . . 1 Weapon . | . . . Tool/Special . | . . . Average Slot Usage (%) 99 | . 98 100 Engine 13 | . 13 14 Treads 28 | . 28 28 Device 14 | . 14 14 Storage 14 | . 14 14 Energy Gun 27 | . 27 27 Peak Build Rating 10 | 7 9 10 Average Rating 7 | 5 6 9 On Entrance 5 | . 7 9 Avg Prop Armor Cover (%) . | . . . Naked Turns . | . . . Heaviest Build 35 | 13 29 35 Greatest Support 40 | 40 40 40 Greatest Overweight (x) . | . . . Average Overweight (x) . | . . . Largest Inventory Capacity 15 | 8 15 15 Average Capacity 14 | 7 14 15 Most Carried 10 | 7 9 10 Average Carried 8 | 3 7 9 Final Capacity 15 | 8 15 15 Final Carried 10 | 7 9 10 Class Distribution -------------------- 100% | Mutant Dominant Class ---------------- Mutant | -10/Materials Mutant | -10/Subcaves Resources | -11 -10 -10 ----------- Run | Yrd Mat Sub Matter Collected 284 | 180 104 . Remotely . | . . . Salvage Created 423 | 66 299 58 Parts 31 | 8 21 2 Haulers Intercepted . | . . . Recyclers Shooed . | . . . Parts Field Recycled . | . . . Retrieved Matter . | . . . Parts Self-Destructed 9 | . . 9 Prevented . | . . . Parts Restored . | . . . Kills | -11 -10 -10 ------- Run | Yrd Mat Sub Combat Hostiles Destroyed 11 | . 10 1 Guns 10 | . 10 . AOE 1 | . . 1 Classes Destroyed 5 | 1 4 . Worker 1 | . 1 . Tunneler 3 | 3 . . Swarmer 6 | . 6 . Grunt 2 | . 2 . Subdweller 3 | . 2 1 Best Kill Streak 3 | 3 3 1 Combat Bots Only 3 | . 3 1 Max Kills in Single Turn 2 | 2 2 1 Gunslinging 1 | . 1 . Exploded 1 | . . 1 Melee . | . . . Uniques/NPCs Destroyed . | . . . Combat | -11 -10 -10 -------- Run | Yrd Mat Sub Hostile Shots Fired 61 | . 40 21 Missed 15 | . 12 3 Hits 46 | . 28 18 Projectile 46 | . 28 18 Damage Taken 734 | . 358 376 Core 250 | . 75 175 Absorbed by Shields . | . . . Core Remaining (%) 100 | 100 . . Volleys Fired 36 | 2 29 5 Largest 2 | 2 2 2 Hottest 80 | 80 80 80 Shots Fired 62 | 4 49 9 Gun 62 | 4 49 9 Cannon . | . . . Launcher . | . . . Special . | . . . Kinetic . | . . . Thermal 5 | . 1 4 Explosive . | . . . Electromagnetic 57 | 4 48 5 Robot Hit Streak 7 | 3 5 7 Robot Miss Streak 5 | . 5 1 Penetration Max . | . . . Secondary Targets 3 | . 3 . Max Gunslinging Chain 1 | . 1 . Shots Hit Robots 38 | 3 27 8 Core Hits 23 | 3 17 3 Critical Kills . | . . . Critical Parts Destroyed . | . . . Critical Strikes 2 | . . 2 Corrupt 2 | . . 2 Melee Attacks . | . . . Impact . | . . . Slashing . | . . . Piercing . | . . . Sneak Attacks . | . . . Combat Hostiles . | . . . Follow-up Attacks . | . . . Damage Inflicted 610 | 51 411 148 Guns 488 | 51 346 91 Cannons . | . . . Explosions 110 | . 53 57 Melee . | . . . Ramming 12 | . 12 . Kinetic . | . . . Thermal 155 | . 64 91 Explosive . | . . . Electromagnetic 443 | 51 335 57 Impact . | . . . Slashing . | . . . Piercing . | . . . Highest Corruption 4 | . . 4 Average Corruption 4 | . . 4 Corruption Purged . | . . . Corruption Blocked . | . . . Overload Shots . | . . . Overflow Damage . | . . . Projectiles . | . . . Explosions . | . . . Melee . | . . . Knockbacks . | . . . Impact . | . . . Kinetic . | . . . Secondary . | . . . Self-Inflicted Damage . | . . . Shots . | . . . Rammed 2 | . 2 . Targets Rammed 2 | . 2 . Kicked . | . . . Crushed . | . . . Highest Temperature 108 | 36 108 . Average Temperature 37 | 20 38 . Received Heat Transfer 120 | . 66 54 Siege Activations . | . . . Martial Activations . | . . . Shielding Activations . | . . . Robots Disrupted . | . . . Combat Hostiles . | . . . Robots Corrupted . | . . . Combat Hostiles . | . . . Parts Fried 1 | . 1 . Impact Corruptions . | . . . Robots Melted . | . . . Combat Hostiles . | . . . Parts Melted 1 | . 1 . Heat Transferred 250 | . 125 125 Parts Sabotaged . | . . . Parts Stolen . | . . . Parts Stripped . | . . . Power Chain Reactions 2 | . 1 1 Alert | -11 -10 -10 ------- Run | Yrd Mat Sub Maximum Alert Level . | . . . Low Security (%) 100 | 100 100 . Level 1 . | . . . Level 2 . | . . . Level 3 . | . . . Level 4 . | . . . Level 5 . | . . . High Security . | . . . Max Security . | . . . Peak Influence 111 | 15 111 . Initial . | . . . Average 37 | 1 42 . Influence Increases 259 | 15 244 . Destroy 0b10 Robot/C 160 | . 160 . Destroy 0b10 Robot/NC 20 | 15 5 . Destroy Leader 30 | . 30 . Successful Hack 30 | . 30 . Disable Machine 15 | . 15 . Destroy Structure 4 | . 4 . Influence Decreases 259 | 15 194 50 Entered New Map 25 | . . 25 Time Decay 214 | 15 174 25 Lost Part 20 | . 20 . Squads Dispatched 1 | . 1 . Investigation . | . . . Extermination . | . . . Reinforcement 1 | . 1 . Assault . | . . . Garrison . | . . . Intercept . | . . . Searches Triggered . | . . . Construction Impeded . | . . . Haulers Reinforced . | . . . Active Scanning Responses . | . . . Cargo Convoy Interrupts . | . . . Stealth | -11 -10 -10 --------- Run | Yrd Mat Sub Distress Signals 1 | . 1 . Communications Jammed . | . . . Distress Signals . | . . . Times Spotted 19 | . 16 3 Peak Tracking Total 5 | . 5 2 Tactical Retreats . | . . . Traps | -11 -10 -10 ------- Run | Yrd Mat Sub Traps Triggered . | . . . Indirectly . | . . . Trap Hack Attempts . | . . . Triggered . | . . . Disarmed . | . . . Reprogrammed . | . . . Reused . | . . . Traps Extracted . | . . . Installed . | . . . Triggered . | . . . Machines | -11 -10 -10 ---------- Run | Yrd Mat Sub Machines Disabled 1 | . 1 . Max in Single Turn 1 | . 1 . Machines Repaired . | . . . Machines Dismantled . | . . . Machines Sabotaged . | . . . Overloaded Fab Kills . | . . . Hacking | -11 -10 -10 --------- Run | Yrd Mat Sub Machines Accessed 4 | . 3 1 Terminals 3 | . 3 . Fabricators . | . . . Repair Stations . | . . . Recycling Units . | . . . Scanalyzers . | . . . Garrison Access . | . . . Total Hacks 11 | . 10 1 Successful 9 | . 8 1 Failed 2 | . 2 . Catastrophic . | . . . Database Lockouts . | . . . Manual 10 | . 10 . Terminals 10 | . 10 . Fabricators . | . . . Repair Stations . | . . . Recycling Units . | . . . Scanalyzers . | . . . Garrison Access . | . . . Terminal Hacks 4 | . 3 1 Robot Analysis 2 | . 2 . Open Door 1 | . . 1 Registered Components 1 | . 1 . Fabricator Hacks . | . . . Repair Station Hacks . | . . . Recycling Unit Hacks . | . . . Scanalyzer . | . . . Garrison Access Hacks . | . . . Unauthorized Hacks 5 | . 5 . Terminals 5 | . 5 . Assimilate 1 | . 1 . Botnet 1 | . 1 . Skim 3 | . 3 . Fabricators . | . . . Repair Stations . | . . . Recycling Units . | . . . Scanalyzers . | . . . Garrison Access . | . . . Data Cores Recovered . | . . . Used . | . . . Hacking Detections 3 | . 3 . Full Trace Events . | . . . Feedback Events . | . . . Feedback Blocked . | . . . Robot Schematics Acquired . | . . . Robots Built . | . . . Authchips . | . . . Time . | . . . Total Robot Build Rating . | . . . Part Schematics Acquired . | . . . Parts Built . | . . . Authchips . | . . . Time . | . . . Total Part Build Rating . | . . . Part Studies Acquired . | . . . Parts Repaired . | . . . Time . | . . . Parts Recycled . | . . . Recycled Matter . | . . . Retrieved Matter . | . . . Retrieved Components . | . . . Parts Scanalyzed . | . . . Part Schematics Acquired . | . . . Parts Damaged . | . . . Bothacking | -11 -10 -10 ------------ Run | Yrd Mat Sub Used RIF Installer . | . . . Robots Hacked . | . . . Non-combat . | . . . Combat . | . . . Robot Hacks Applied . | . . . Relay Couplers Released . | . . . Fabnet Peak Effective % . | . . . Robots Rewired . | . . . Allies Hacked . | . . . Hacks Repelled . | . . . Allies | -11 -10 -10 -------- Run | Yrd Mat Sub Total Allies . | . . . Largest Group . | . . . Highest-Rated Group . | . . . Highest-Rated Ally . | . . . Total Orders . | . . . Ally Attacks . | . . . Total Damage . | . . . Kills . | . . . Allies Corrupted . | . . . Allies Melted . | . . . Intel | -11 -10 -10 ------- Run | Yrd Mat Sub Active Infowar (turns) 1116 | 10 620 486 Seismic 1116 | 10 620 486 Robot Analysis Total 2 | . 2 . Derelict Logs Recovered 1 | . . 1 Drone Launches . | . . . Drone Recoveries . | . . . Exploration | -11 -10 -10 ------------- Run | Yrd Mat Sub Turns Passed 1196 | 90 620 486 Spaces Moved 661 | 46 327 288 Core 5 | 5 . . Treads 656 | 41 327 288 Legs . | . . . Wheels . | . . . Hover . | . . . Flight . | . . . Fastest Speed 50 | 50 160 160 Average Speed 159 | 148 160 160 Slowest Speed 160 | 160 160 160 Overloaded Moves . | . . . Propulsion Burnouts . | . . . Robots Hopped . | . . . Potential Cave-ins . | . . . Cave-ins Triggered . | . . . Exploration Rate (%) 26 | 4 50 26 Regions Visited 2 Branch Regions 1 Pre-discovered Areas 1 | . . 1 Known Exits Taken . | . . . Unknown Exits Taken 2 | 1 1 . Scrap Searched . | . . . Spaces Dug . | . . . Terrain Destroyed 11 | . 4 7 Melee . | . . . Projectile . | . . . AOE 11 | . 4 7 Terrain Rammed . | . . . Walls Destroyed . | . . . Machines Disabled . | . . . Actions | -11 -10 -10 --------- Run | Yrd Mat Sub Total 737 | 61 373 303 Wait 16 | . 11 5 Move 659 | 45 326 288 Hop . | . . . Pick Up 10 | 7 2 1 Fast Attach 8 | 7 1 . Attach 1 | . 1 . Detach . | . . . Swap 5 | . 1 4 Drop . | . . . Fire 36 | 2 29 5 Melee . | . . . Ram . | . . . Kick . | . . . Crush 2 | . 2 . Escape Stasis . | . . . Rewire . | . . . Trap . | . . . Miscellaneous . | . . . Route ------- -11/Scrapyard -10/Materials (discovered 3 exits: [*Mat x2] / *Sub) -10/Subcaves (discovered 1 exit: [*Scr]) History --------- Turn | Location | Event 43 | -11/Scrapyard | Discovered new exit (range 16) 91 | -11/Scrapyard | Entered Materials 286 | -10/Materials | Discovered new exit (range 14) 317 | -10/Materials | Build established: Mutant 479 | -10/Materials | Discovered new exit (range 4) 560 | -10/Materials | Discovered new exit (range 7) 591 | -10/Materials | Derelicts attacked the area 711 | -10/Materials | Entered Subcaves 712 | -10/Subcaves | Approached by a straggling Scientist 731 | -10/Subcaves | Learned location of Zion (-7) 1083 | -10/Subcaves | A swath of the cavern ceiling suddenly collapsed 1143 | -10/Subcaves | Scientist uncovered a shortcut to Scraptown 1173 | -10/Subcaves | Core integrity fell below 50% 1190 | -10/Subcaves | Core integrity fell below 20% 1197 | -10/Subcaves | Destroyed by ID-U6V(R) with Subdweller Laser Last Messages --------------- 00965_ Connecting with UFD SUBCON Station... 00965_ Current location identified: Subcaves >>Open Door Sealed Heavy Doors opened. E4-NIE(c): "I think it's somewhere northeast of here" E4-NIE(c): "I think it's somewhere north of here" A swath of the cavern ceiling suddenly collapses. E4-NIE(c): "I think it's somewhere north of here" 01143_ E4-NIE(c): "Hah, right again, there it is!" 01147_ E4-NIE(c) exits level. 01158_ Integrated Corrupted Sub. Beam Cannon (+4). 01158_ Corrupted Sub. Beam Cannon temporarily disabled. 01169_ Subatomizers dissect the Wheel. Map ----- +----------------------------------------------------+ | ?????????????????????????????????????????????????? | | ?????????????????????????????????????????????????? | | ?????????????????????????????????????????????????? | | ?????????????????????????????????????????????????? | | ?????????????????????????????????????????????????? | | ?????????????????????????????????????????????????? | | ???????????????????????##????????????????????????? | | ???????????????????????? ??????????????????????? | | ????????????????????????? "?????????????????????? | | ?????????????????????????? "?????????????????????? | | ??????????????????????????# ????????????????????? | | ?????????????????????????## #???????????????????? | | ?????????????????????????# #??????????????????? | | ??????????????????????????? % ##????????????????? | | ?????????????????????????????"""#????????????????? | | ??????????????????????????????# #????????????????? | | ?????????????????????????????## ##???????????????? | | ??????????????????????????#### #???????????????? | | ??????????????????##?##?### ##???????????????? | | ????????????????? %% "# #???????????????? | | ?????????????????# = """ > ##??????????????? | | ?????????????????# "## #??????????????? | | ???????????????? %??# #??????????????? | | ????????????????? #???### " ##??????????????? | | ??????????????????? ???#### ## #???????????????? | | ??????????????????????## @## " #???????????????? | | ??????????????????????# R " #???????????????? | | ??????????????????????# R ##???????????????? | | ??????????????????????## ##???????????????? | | ???????????????????????## ##??????????????? | | ????????????????????????### #??????????????? | | ??????????????????????????# #??????????????? | | ??????????????????????????# # #??????????????? | | ?????????????????????????## ### #??????????????? | | ?????????????????????????# ######??????????????? | | ?????????????????????????## ##???????????????????? | | ?????????????????????????# #???????????????????? | | ?????????????????????????## ##???????????????????? | | ?????????????????????????## #??###??????????????? | | ?????????????????????????# #### #??????????????? | | ?????????????????????????## ## #??????????????? | | ??????????????????????????# ##?????????????? | | ??????????????????????????## #?????????????? | | ???????????????????????????# #?????????????? | | ???????????????????????????##### #?????????????? | | ??????????????????????????????# ##?????????????? | | ??????????????????????????????## #??????????????? | | ????????????????????? #??????## #??????????????? | | ????????????????????? #?????# #??????????????? | | ???????????????????? ##???## #??????????????? | +----------------------------------------------------+ Best States ------------- Heat Dissipation 25 Energy Generation 10 Energy Capacity 200 Matter Stores 300 Matter Capacity 300 Sight Range 16 Terrain Scan Density 10 Evasion (%) 40 Recoil Reduction 2 Item Schematics ----------------- None Robot Schematics ------------------ None Fabricated ------------ Nothing Repaired ---------- Nothing Studied --------- None Alien Tech Used ----------------- None Achievements -------------- None Challenges ------------ None Game ------ Seed IntegrityPitchforkMapper Manual? 0 Play Time 00:07:27 Cumulative 178.0 hours Start 2025.10.29 @ 17:35:51 End 2025.10.29 @ 17:43:37 Sessions 1 Manual Loads 0 Difficulty Rogue Special Mode None Game No. 162 Rogue 162 Adventurer 0 Explorer 0 Win Type - Total 6 Types 5/0/1/0/0/0/0/0/0/0 Lore% 79 Gallery% 69 Achievement% 52 Wizard Run 0 Options --------- Layout 1 ASCII 0 Keyboard 1 Movement Arrows Keybinds 0 Fullscreen 1 Font 24/Smallcaps Map View 50x40 Zoom Use 0% Tactical HUD 1 Map Filters NONE Filters NONE Steam 1 RUN: d5575511-b2d2-4108-97b9-e034235c820f